bitfinex-derivatives/quotes_ETHF0:USTF0_20240925
["timestamp","ask_amount","ask_price","bid_price","bid_amount"]
[1727305038723,4.55204597,2574.6,2574.5,0.38844]
[1727305038921,7.98047597,2574.6,2574.4,0.38844]
[1727305039121,7.98047597,2574.6,2574.5,0.38844]
[1727305039310,5.45156154,2574.6,2574.5,0.38844]
[1727305039507,5.06313154,2574.6,2574.1,3.2078]
[1727305039715,5.06313154,2574.6,2573.8,0.38854]
[1727305039716,4.01122,2574.2,2573.8,0.38854]
[1727305039915,0.38859,2573.5,2573.4,3.2078]
[1727305040116,4.56292923,2573.5,2573.4,3.59641]
[1727305040322,4.56292923,2573.5,2573.4,3.2078]
[1727305040520,3.04,2573.5,2573.4,3.2078]
[1727305040924,3.04,2573.5,2573.4,3.59641]
[1727305042726,3.42859,2573.5,2573.4,3.2078]
[1727305043828,3.04,2573.5,2573.4,3.59641]
[1727305044424,4.56251829,2573.5,2573.4,3.2078]
[1727305044729,3.04,2573.5,2573.4,3.2078]
[1727305045129,3.42859,2573.5,2573.4,3.2078]
[1727305045616,3.42859,2573.5,2573.3,3.59641]
[1727305045820,1.52234074,2573.4,2573.3,3.59641]
[1727305046220,1.52234074,2573.4,2573.3,3.2078]
[1727305046425,4.95094074,2573.5,2573.3,7.48202]
[1727305046629,4.56234074,2573.5,2573.4,0.38861]
[1727305047833,3.04,2573.5,2573.4,0.38861]
[1727305048929,2.44554074,2573.6,2573.5,0.38859]
[1727305049128,1.52234074,2573.6,2573.5,0.38859]
[1727305049440,1.52234074,2573.7,2573.6,0.38858]
[1727305050123,2.4191223,2573.8,2573.6,0.38858]
[1727305050326,1.52224256,2573.7,2573.6,0.38858]
[1727305051730,1.52224256,2573.7,2573.6,7.48198]
[1727305052136,1.52224256,2573.8,2573.7,0.38856]
[1727305052431,1.52224256,2573.8,2573.7,0.86326]
[1727305053330,1.52224256,2573.9,2573.8,0.38855]
[1727305054228,1.52224256,2574.0,2573.9,0.38853]
[1727305054429,0.4411,2574.2,2573.9,0.38853]
[1727305054430,1.96334256,2574.2,2574.1,0.3885]
[1727305054638,1.52224256,2574.2,2574.1,0.3885]
[1727305055040,1.52224256,2574.3,2574.2,0.38848]
[1727305055237,1.52224256,2574.4,2574.3,0.38847]
[1727305055440,1.52224256,2574.4,2574.3,4.27327]
[1727305055636,5.4590223,2574.5,2574.2,4.53078]
[1727305055839,4.56251158,2574.3,2574.2,4.53078]
[1727305056136,4.95098158,2574.3,2574.2,0.9345]
[1727305056335,4.95098158,2574.3,2574.1,29.7]
[1727305056543,0.38848,2574.2,2574.1,29.7]
[1727305056840,1.52251158,2574.2,2574.1,29.7]
[1727305057843,4.95098158,2574.3,2574.1,29.7]
[1727305058147,1.52251158,2574.2,2574.1,29.7]
[1727305058330,0.38848,2574.2,2574.1,29.7]
[1727305058526,0.85779,2574.2,2573.9,3.59633]
[1727305058839,0.4693,2574.2,2574.0,0.38851]
[1727305059037,1.99181158,2574.2,2574.0,0.38851]
[1727305059226,1.99181158,2574.2,2573.9,3.2078]
[1727305059431,2.38031158,2574.2,2573.9,3.59633]
[1727305059626,1.99181158,2574.2,2574.0,0.38851]
[1727305059837,1.99181158,2574.2,2573.9,3.2078]
[1727305059838,2.38029158,2574.2,2573.9,3.59632]
[1727305060737,1.99181158,2574.2,2574.0,0.38851]
[1727305061052,2.38030158,2574.2,2573.9,3.59632]
[1727305061240,3.04,2574.1,2573.9,3.2078]
[1727305061451,0.38851,2574.0,2573.9,3.2078]
[1727305062043,4.95102158,2574.1,2573.9,3.2078]
[1727305062246,0.38851,2574.0,2573.9,3.2078]
[1727305062449,1.52251158,2574.0,2573.9,3.2078]
[1727305062636,4.95102158,2574.1,2573.9,3.2078]
[1727305063333,4.56251158,2574.1,2573.9,3.59633]
[1727305063534,1.52251158,2574.1,2574.0,0.38851]
[1727305063740,1.99181158,2574.2,2574.0,0.38851]
[1727305064244,1.99181158,2574.2,2574.1,0.3885]
[1727305064540,0.4693,2574.2,2574.0,0.38851]
[1727305064744,1.99181158,2574.2,2574.0,0.38851]
[1727305067348,1.99181158,2574.2,2574.1,0.3885]
[1727305067744,1.52251158,2574.3,2574.2,0.38848]
[1727305067945,1.52251158,2574.3,2574.2,3.59628]
[1727305068341,1.99731158,2574.4,2574.3,0.38847]
[1727305068557,1.52251158,2574.4,2574.3,4.74237]
[1727305069041,1.52251158,2574.4,2574.3,5.19587]
[1727305069346,1.52251158,2574.5,2574.4,0.38845]
[1727305069848,2.9561723,2574.7,2574.5,0.38844]
[1727305069849,1.52251158,2574.6,2574.5,0.38844]
[1727305070038,3.3445823,2574.7,2574.5,0.38844]
[1727305070235,2.9561723,2574.7,2574.6,0.38842]
[1727305070849,2.4958723,2574.7,2574.6,0.38842]
[1727305071245,2.4958723,2574.7,2574.3,0.9226]
[1727305071246,2.8842823,2574.7,2574.5,0.38843]
[1727305071438,1.52176362,2574.6,2574.5,0.38843]
[1727305072143,1.52176362,2574.6,2574.5,4.27243]
[1727305072439,1.52104137,2574.6,2574.5,4.27243]
[1727305072643,2.8842823,2574.7,2574.5,4.27243]
[1727305072952,2.8842823,2574.7,2574.5,0.38843]
[1727305073650,1.52123161,2574.6,2574.5,0.38843]
[1727305075147,4.94965161,2574.6,2574.4,0.38845]
[1727305075350,1.90968161,2574.5,2574.4,0.38845]
[1727305075540,2.39178161,2574.5,2574.3,0.38846]
[1727305075746,2.00333161,2574.5,2574.4,0.38845]
[1727305077352,2.00333161,2574.5,2574.4,3.59625]
[1727305077552,0.4821,2574.5,2574.4,3.59625]
[1727305078152,0.4821,2574.5,2574.4,0.38845]
[1727305078563,0.87054,2574.5,2574.4,3.2078]
[1727305079144,0.4821,2574.5,2574.4,3.2078]
[1727305079652,0.87054,2574.5,2574.4,3.2078]
[1727305081559,0.87054,2574.5,2574.3,0.38847]
[1727305084160,0.87054,2574.5,2574.3,3.59627]
[1727305084959,0.87054,2574.5,2574.3,0.38847]
[1727305085153,0.87054,2574.5,2574.3,3.59627]
[1727305085657,0.4821,2574.5,2574.3,3.2078]
[1727305085860,0.38845,2574.4,2574.3,3.2078]
[1727305086655,14.44603161,2574.4,2574.0,3.2078]
[1727305086860,3.42851,2574.1,2574.0,3.2078]
[1727305088755,5.43164161,2574.1,2574.0,3.2078]
[1727305088962,6.40290161,2574.1,2574.0,3.2078]
[1727305089462,4.88167,2574.1,2574.0,3.2078]
[1727305089947,3.91041,2574.1,2574.0,3.2078]
[1727305090154,3.91041,2574.1,2573.9,3.59633]
[1727305090356,1.97371964,2574.0,2573.9,3.59633]
[1727305090548,1.52111964,2574.0,2573.9,3.59633]
[1727305090956,1.52111964,2574.1,2574.0,0.38851]
[1727305091254,1.52111964,2574.1,2573.9,3.2078]
[1727305091255,1.90960964,2574.2,2574.1,0.3885]
[1727305091450,0.38849,2574.2,2574.1,0.3885]
[1727305091668,1.91020515,2574.2,2574.1,0.3885]
[1727305091849,0.38849,2574.2,2574.0,0.3885]
[1727305092055,1.52175701,2574.1,2574.0,0.3885]
[1727305092351,1.91026701,2574.1,2573.9,3.2078]
[1727305092647,4.56203792,2574.0,2573.9,3.59633]
[1727305093665,5.01173792,2574.0,2573.9,3.59633]
[1727305094556,3.4897,2574.0,2573.9,3.59633]
[1727305094752,5.01222022,2574.0,2573.9,3.59633]
[1727305095373,3.4897,2574.0,2573.9,3.59633]
[1727305095657,3.4897,2574.0,2573.9,3.2078]
[1727305095857,5.5202723,2574.0,2573.9,3.2078]
[1727305096652,5.5202723,2574.0,2573.9,3.59633]
[1727305100475,3.4897,2574.0,2573.9,3.59633]
[1727305100969,3.4897,2574.0,2573.9,3.2078]
[1727305101468,3.4897,2574.0,2573.8,0.38853]
[1727305101673,1.52366767,2573.9,2573.8,0.38853]
[1727305101973,1.52366767,2573.9,2573.8,3.59633]
[1727305102156,1.52366767,2573.9,2573.8,3.2078]
[1727305102465,2.84499767,2573.9,2573.8,3.2078]
[1727305102967,2.45646767,2573.9,2573.8,3.2078]
[1727305103170,2.45646767,2573.9,2573.8,3.59635]
[1727305103767,3.04,2574.0,2573.9,0.38853]
[1727305104468,3.42851,2574.0,2573.9,0.38853]
[1727305104668,4.95239244,2574.0,2573.9,0.38853]
[1727305104865,3.42851,2574.0,2573.9,0.38853]
[1727305105066,0.38853,2573.9,2573.8,3.2078]
[1727305105266,0.38853,2573.9,2573.4,3.2078]
[1727305105267,0.38859,2573.5,2573.4,3.2078]
[1727305105573,0.38867,2573.0,2572.9,3.2078]
[1727305105872,5.45942799,2573.0,2572.8,0.3887]
[1727305106064,0.38868,2572.9,2572.8,3.2078]
[1727305106267,0.3887,2572.8,2572.6,1.32122]
[1727305106467,3.04,2572.8,2572.6,1.32122]
[1727305107177,1.52298915,2572.9,2572.6,0.9325]
[1727305107470,3.42872,2572.7,2572.5,3.2078]
[1727305107771,3.04,2572.7,2572.5,0.38874]
[1727305107972,3.4873,2572.8,2572.7,0.38871]
[1727305108168,3.04,2572.8,2572.7,0.38871]
[1727305108371,2.38896915,2572.9,2572.6,0.85321]
[1727305108567,1.91166915,2572.9,2572.6,0.4645]
[1727305108772,1.52298915,2572.9,2572.6,0.4645]
[1727305108970,1.52298915,2572.9,2572.7,0.38871]
[1727305112079,3.42867,2573.0,2572.7,0.38871]
[1727305112475,3.42867,2573.0,2572.8,3.2078]
[1727305113372,0.38868,2572.9,2572.8,3.2078]
[1727305113878,0.38871,2572.7,2572.5,3.59653]
[1727305114176,3.42871,2572.7,2572.5,3.59653]
[1727305114672,3.04,2572.7,2572.6,0.38873]
[1727305115968,6.9272,2572.7,2572.5,3.2078]
[1727305116167,0.4592,2572.9,2572.6,0.38873]
[1727305116168,3.88789,2572.9,2572.6,0.38873]
[1727305116374,3.88789,2572.9,2572.6,0.86033]
[1727305118375,0.3887,2572.8,2572.6,0.86033]
[1727305119179,3.88789,2572.9,2572.6,0.86033]
[1727305120482,3.4992,2572.9,2572.7,0.3887]
[1727305120677,3.04,2572.9,2572.8,0.3887]
[1727305121085,3.04,2572.9,2572.7,0.3887]
[1727305121276,3.04,2572.9,2572.8,3.691]
[1727305121879,3.42868,2572.9,2572.8,3.691]
[1727305122084,3.4873,2573.1,2572.8,3.691]
[1727305122285,0.4473,2573.1,2573.0,0.38867]
[1727305122792,0.4773,2573.2,2572.8,3.691]
[1727305122793,0.4773,2573.2,2573.1,0.38865]
[1727305123085,3.42862,2573.3,2573.0,0.38866]
[1727305123385,3.42862,2573.3,2573.1,0.38865]
[1727305123884,0.38864,2573.2,2573.0,0.38866]
[1727305124084,0.38864,2573.2,2573.0,0.38865]
[1727305124399,3.42866,2573.1,2572.9,0.38868]
[1727305124789,3.04,2573.1,2572.9,0.38868]
[1727305125691,3.04,2573.1,2573.0,0.38867]
[1727305130203,0.4825,2573.4,2573.0,3.8864]
[1727305130405,0.87111,2573.4,2573.2,3.59643]
[1727305131402,0.87111,2573.4,2573.2,3.2078]
[1727305131403,3.42862,2573.3,2573.2,3.2078]
[1727305131593,3.42863,2573.3,2573.1,0.4647]
[1727305131799,3.42863,2573.3,2573.1,0.38864]
[1727305132199,3.04,2573.3,2573.1,0.38864]
[1727305133506,3.04,2573.3,2573.2,0.38864]
[1727305135901,3.04,2573.3,2572.9,3.2078]
[1727305136103,3.04,2573.3,2573.2,3.59644]
[1727305138217,3.42862,2573.3,2573.2,3.2078]
[1727305138916,3.04,2573.3,2573.2,3.59644]
[1727305139219,3.4962,2573.5,2573.2,3.2078]
[1727305139409,3.4962,2573.5,2573.4,0.38861]
[1727305140307,3.88479,2573.5,2573.3,1.30781]
[1727305141614,0.4565,2573.6,2573.3,0.9192]
[1727305141818,0.4565,2573.6,2573.5,3.59639]
[1727305142116,0.4861,2573.9,2573.8,0.38855]
[1727305142117,1.52298915,2573.9,2573.8,0.38855]
[1727305142314,5.07075799,2574.1,2573.9,0.38853]
[1727305142315,1.52298915,2574.0,2573.9,0.38853]
[1727305142618,4.95149915,2574.1,2573.9,0.38853]
[1727305142922,1.52298915,2574.0,2573.9,0.38853]
[1727305143115,4.95149915,2574.1,2573.9,0.38853]
[1727305143416,4.95149915,2574.1,2574.0,0.38851]
[1727305143417,4.56298915,2574.1,2574.0,0.38851]
[1727305143617,3.04,2574.1,2573.8,3.6748]
[1727305143914,1.3256,2574.2,2573.8,3.6748]
[1727305143915,3.04,2573.9,2573.8,3.6748]
[1727305144117,0.38852,2574.0,2573.8,4.06335]
[1727305144414,3.04,2573.9,2573.8,4.06335]
[1727305144922,3.04,2573.9,2573.8,7.94895]
[1727305147414,3.04,2573.9,2573.8,7.5604]
[1727305147714,3.42853,2573.9,2573.8,3.2078]
[1727305147909,3.88223,2573.9,2573.8,3.2078]
[1727305148917,3.88223,2573.9,2573.5,3.59638]
[1727305148918,0.38856,2573.8,2573.5,3.59638]
[1727305149123,0.83946,2573.8,2573.5,3.59638]
[1727305149319,0.38856,2573.7,2573.5,3.59638]
[1727305149523,0.86426,2573.7,2573.5,3.2078]
[1727305149714,0.86426,2573.7,2573.5,3.59638]
[1727305149914,0.86426,2573.7,2573.5,3.59639]
[1727305149915,3.5157,2573.7,2573.5,3.59639]
[1727305150215,3.5157,2573.7,2573.5,3.59638]
[1727305150827,3.90427,2573.7,2573.5,3.2078]
[1727305151120,3.90427,2573.7,2573.3,5.1105]
[1727305151121,3.42858,2573.6,2573.3,5.49911]
[1727305151423,3.04,2573.4,2573.3,0.38862]
[1727305151913,3.5075,2573.4,2573.3,0.38862]
[1727305152420,3.5075,2573.4,2573.2,3.2078]
[1727305153117,3.5075,2573.4,2573.3,0.38862]
[1727305154219,0.4675,2573.4,2573.3,0.38862]
[1727305154425,1.99868915,2573.7,2573.3,3.8856]
[1727305154426,0.4757,2573.7,2573.3,3.8856]
[1727305154621,0.86426,2573.7,2573.5,3.59638]
[1727305157322,0.443,2573.8,2573.7,0.38856]
[1727305157624,0.38854,2573.9,2573.7,0.38855]
[1727305157826,0.38854,2573.9,2573.8,3.2078]
[1727305157827,0.84384,2573.9,2573.8,3.2078]
[1727305158018,3.88384,2573.9,2573.8,3.2078]
[1727305160123,3.4953,2573.9,2573.8,3.59635]
[1727305160629,5.01828915,2573.9,2573.8,3.59635]
[1727305161726,1.97728915,2574.0,2573.9,0.38853]
[1727305161923,1.52298915,2574.0,2573.9,0.38853]
[1727305162126,1.52298915,2574.0,2573.9,0.83173]
[1727305162726,1.91149915,2574.0,2573.9,0.83173]
[1727305163026,1.52298915,2574.0,2573.9,0.83173]
[1727305163431,1.91149915,2574.0,2573.9,0.83173]
[1727305163738,1.91149915,2574.0,2573.9,0.4432]
[1727305165130,1.91149915,2574.0,2573.8,3.59633]
[1727305166426,1.52298915,2573.9,2573.8,3.59633]
[1727305167227,1.91149915,2574.0,2573.8,3.59633]
[1727305167534,1.52298915,2573.9,2573.8,3.59633]
[1727305168924,1.91151915,2573.9,2573.8,3.59633]
[1727305169121,1.91151915,2573.9,2573.8,3.2078]
[1727305169324,3.90223,2573.9,2573.8,3.2078]
[1727305169836,0.38856,2573.7,2573.5,0.83158]
[1727305170035,0.4596,2573.6,2573.5,0.83158]
[1727305171323,5.0248042,2573.6,2573.2,4.186]
[1727305171539,5.0248042,2573.6,2573.0,4.1727]
[1727305171540,1.5252042,2573.5,2573.0,4.1727]
[1727305171831,0.3887,2572.8,2572.7,3.2078]
[1727305172035,3.04,2572.8,2572.7,3.2078]
[1727305172337,3.04,2572.8,2572.7,3.59651]
[1727305172736,3.04,2572.8,2572.7,3.2078]
[1727305172929,2.9353042,2572.9,2572.7,3.2078]
[1727305173130,2.9353042,2572.9,2572.7,3.5965]
[1727305174140,2.9353042,2572.9,2572.7,3.2078]
[1727305174327,1.4101,2572.9,2572.7,3.2078]
[1727305174523,2.9353042,2572.9,2572.7,3.2078]
[1727305174727,2.9353042,2572.9,2572.7,3.59651]
[1727305175122,2.9353042,2572.9,2572.7,3.2078]
[1727305175324,1.79878,2572.9,2572.7,3.2078]
[1727305175632,3.3239842,2572.9,2572.7,3.2078]
[1727305175828,1.79878,2572.9,2572.7,3.2078]
[1727305176732,1.4101,2572.9,2572.7,3.59651]
[1727305176926,1.79878,2572.9,2572.7,3.2078]
[1727305177838,1.79878,2572.9,2572.7,32.9078]
[1727305178431,1.79878,2572.9,2572.7,3.2078]
[1727305180942,0.9364,2572.9,2572.8,0.3887]
[1727305181133,0.9364,2572.9,2572.8,1.3448]
[1727305181339,1.5252042,2573.1,2573.0,0.38867]
[1727305181640,2.53844748,2573.4,2573.0,4.17944]
[1727305181641,1.5252042,2573.4,2573.0,4.17944]
[1727305181845,1.5252042,2573.5,2573.4,0.38861]
[1727305182042,0.956,2573.7,2573.5,0.38859]
[1727305182043,1.5252042,2573.6,2573.5,0.38859]
[1727305182433,1.5252042,2573.6,2573.4,1.3447]
[1727305182635,5.9097642,2573.7,2573.4,1.3447]
[1727305182839,1.5252042,2573.6,2573.4,1.3447]
[1727305184543,5.9097642,2573.7,2573.4,1.3447]
[1727305184856,0.38858,2573.6,2573.4,0.9561]
[1727305185046,1.5252042,2573.6,2573.4,1.3447]
[1727305185235,5.5212042,2573.7,2573.5,0.38859]
[1727305185541,0.4726,2573.7,2573.6,3.2078]
[1727305188447,5.4263642,2573.7,2573.6,3.2078]
[1727305190946,5.4263642,2573.7,2573.5,3.2078]
[1727305191746,5.0378042,2573.7,2573.5,3.59638]
[1727305192951,1.5252042,2573.7,2573.6,0.38858]
[1727305193152,1.5252042,2573.8,2573.7,0.38856]
[1727305195351,1.5252042,2573.8,2573.6,0.38856]
[1727305196239,1.5252042,2573.8,2573.7,0.38856]
[1727305199355,1.5252042,2573.9,2573.8,0.38855]
[1727305200240,1.5252042,2574.0,2573.8,7.48195]
[1727305200445,1.5252042,2574.2,2574.1,0.3885]
[1727305200655,1.5252042,2574.2,2574.1,3.5963]
[1727305200851,1.5252042,2574.3,2574.2,0.38848]
[1727305201049,3.35081799,2574.4,2574.2,0.38848]
[1727305201250,0.38848,2574.3,2574.1,32.9078]
[1727305201446,1.52402588,2574.2,2574.1,3.5963]
[1727305202651,1.52402588,2574.2,2574.1,3.2078]
[1727305202850,0.38853,2574.0,2573.7,0.38855]
[1727305203051,3.88323,2573.9,2573.7,3.59635]
[1727305203255,4.33123,2573.9,2573.7,3.59635]
[1727305204558,4.33124,2573.9,2573.7,3.2078]
[1727305204753,0.9027,2573.9,2573.7,3.2078]
[1727305205059,0.38856,2573.7,2573.4,3.5964]
[1727305205357,0.38856,2573.7,2573.4,33.2964]
[1727305205555,4.9524301,2573.8,2573.4,32.9078]
[1727305205752,4.9524301,2573.8,2573.5,0.38858]
[1727305205957,0.38856,2573.7,2573.5,0.38858]
[1727305206345,0.38856,2573.7,2573.4,33.29639]
[1727305208354,0.38856,2573.7,2573.5,0.38859]
[1727305209557,0.38858,2573.6,2573.4,33.2964]
[1727305210061,0.4841,2573.5,2573.4,33.2964]
[1727305212162,1.9785701,2573.9,2573.4,39.8334]
[1727305212347,1.9785701,2573.9,2573.7,3.2078]
[1727305212348,2.8512101,2573.9,2573.7,3.2078]
[1727305212660,0.38858,2573.6,2573.4,3.5964]
[1727305213058,4.27418,2573.6,2573.4,3.5964]
[1727305213247,3.8856,2573.6,2573.4,3.5964]
[1727305213454,3.8856,2573.6,2573.5,0.38859]
[1727305213656,3.8856,2573.6,2573.4,3.59639]
[1727305214159,1.9124401,2573.7,2573.4,3.59639]
[1727305214160,1.5238701,2573.7,2573.4,3.2078]
[1727305214358,0.38859,2573.5,2573.4,3.2078]
[1727305214866,0.38859,2573.5,2573.2,0.85963]
[1727305214867,0.38861,2573.4,2573.2,0.85963]
[1727305215163,0.85551,2573.4,2573.2,0.471]
[1727305215763,0.85551,2573.4,2573.1,3.59644]
[1727305215764,0.38862,2573.3,2573.1,3.59644]
[1727305215963,0.85033,2573.3,2573.1,3.59645]
[1727305216162,0.4617,2573.3,2573.1,3.2078]
[1727305216357,0.4617,2573.3,2573.1,3.59645]
[1727305216664,0.85032,2573.3,2573.1,3.59645]
[1727305216860,0.85032,2573.3,2572.7,1.41746]
[1727305216861,4.0116,2573.2,2572.7,3.6535]
[1727305217160,4.0116,2573.2,2572.7,3.2078]
[1727305217161,3.04,2572.9,2572.7,3.2078]
[1727305217350,1.4438,2572.8,2572.6,0.4618]
[1727305217555,1.4438,2572.8,2572.6,0.85052]
[1727305218358,1.4438,2572.8,2572.7,0.38871]
[1727305218761,1.4438,2572.8,2572.7,3.59651]
[1727305221151,0.9621,2572.8,2572.7,3.59651]
[1727305221357,1.52482734,2573.0,2572.7,3.2078]
[1727305221554,2.00622734,2573.3,2573.2,0.38864]
[1727305221754,3.55558533,2573.4,2573.3,0.38862]
[1727305221955,2.53844748,2573.7,2573.3,0.38862]
[1727305221956,1.52482734,2573.5,2573.3,0.38862]
[1727305222153,1.52482734,2573.5,2573.4,0.38861]
[1727305223560,2.00622734,2573.7,2573.6,0.38858]
[1727305223756,2.00622734,2573.7,2573.6,3.59638]
[1727305224366,1.52482734,2573.7,2573.6,3.59638]
[1727305227263,1.52482734,2573.8,2573.7,0.38856]
[1727305227661,1.52558295,2573.8,2573.7,0.468]
[1727305228161,1.52558295,2573.8,2573.7,0.85655]
[1727305228766,1.52558295,2573.8,2573.7,1.82796]
[1727305228957,1.52558295,2574.1,2574.0,0.38851]
[1727305229162,1.52558295,2574.2,2574.1,0.3885]
[1727305229355,1.52558295,2574.3,2574.2,0.38848]
[1727305229564,1.52558295,2574.4,2574.2,30.55108]
[1727305230067,1.52558295,2574.4,2574.3,3.2078]
[1727305230364,1.52558295,2574.4,2574.3,3.59627]
[1727305231258,1.52558295,2574.4,2574.3,0.38847]
[1727305231454,1.52558295,2574.4,2574.2,30.55107]
[1727305232159,1.52558295,2574.4,2574.3,0.38847]
[1727305232366,1.52558295,2574.4,2574.2,30.1626]
[1727305232571,1.52558295,2574.4,2574.3,3.2078]
[1727305232957,1.91403295,2574.4,2574.3,3.2078]
[1727305233162,1.52558295,2574.4,2574.3,3.59627]
[1727305233364,1.52558295,2574.4,2574.3,3.2078]
[1727305233765,1.52558295,2574.4,2574.3,3.59627]
[1727305234362,1.91403295,2574.5,2574.3,3.2078]
[1727305234561,1.52558295,2574.5,2574.3,3.59626]
[1727305234762,1.52558295,2574.5,2574.4,0.38845]
[1727305235274,1.52355789,2574.5,2574.4,29.7]
[1727305235572,1.52355789,2574.6,2574.4,30.08845]
[1727305235871,1.52355789,2574.6,2574.4,30.08844]
[1727305236081,1.52355789,2574.6,2574.4,29.7]
[1727305236267,1.91198789,2574.6,2574.4,30.08845]
[1727305237270,1.91198789,2574.6,2574.4,29.7]
[1727305237471,1.91198789,2574.6,2574.4,30.08845]
[1727305237671,1.52355789,2574.6,2574.4,30.08845]
[1727305237972,1.91198789,2574.6,2574.4,30.08845]
[1727305238665,1.52355789,2574.6,2574.4,30.08845]
[1727305239470,3.04,2574.5,2574.3,3.2078]
[1727305239673,0.38847,2574.3,2574.2,0.4626]
[1727305240176,1.29656,2574.4,2574.2,0.85108]
[1727305240364,1.29656,2574.4,2574.2,0.4626]
[1727305240365,1.29655,2574.4,2574.2,0.4626]
[1727305240561,0.9081,2574.4,2574.2,0.4626]
[1727305240773,1.29656,2574.4,2574.2,0.4626]
[1727305241574,0.38847,2574.3,2574.2,0.4626]
[1727305241772,0.38847,2574.3,2574.0,3.2078]
[1727305241773,0.3885,2574.1,2574.0,3.2078]
[1727305242069,3.4285,2574.1,2574.0,3.2078]
[1727305242270,7.89606,2574.1,2573.6,4.07417]
[1727305242578,3.04,2573.8,2573.6,4.07417]
[1727305243063,3.04,2573.8,2573.7,0.38856]
[1727305243064,3.5227,2573.8,2573.7,0.38856]
[1727305243871,3.5227,2573.8,2573.6,3.6856]
[1727305244069,3.91125,2573.8,2573.6,3.6856]
[1727305244576,0.38856,2573.7,2573.6,3.6856]
[1727305244773,3.5227,2573.8,2573.3,0.38862]
[1727305244979,3.04,2573.5,2573.3,0.38862]
[1727305246375,3.42861,2573.4,2573.2,3.2078]
[1727305247079,3.4286,2573.5,2573.2,3.59643]
[1727305248977,3.04,2573.5,2573.2,3.2078]
[1727305249168,0.4753,2573.6,2573.4,0.38859]
[1727305249366,2.00625789,2573.8,2573.5,3.2078]
[1727305249572,0.4827,2573.8,2573.7,0.38856]
[1727305251166,0.4827,2573.8,2573.6,1.31367]
[1727305251367,0.4827,2573.8,2573.7,0.38856]
[1727305255283,4.73135789,2574.0,2573.7,0.38856]
[1727305255482,1.52355789,2574.3,2574.2,0.38848]
[1727305255682,0.4396,2574.4,2574.3,0.38847]
[1727305255683,1.96315789,2574.4,2574.3,0.38847]
[1727305255888,3.4796,2574.4,2574.1,3.2078]
[1727305256073,0.9438,2574.3,2574.0,0.4772]
[1727305256279,3.04,2574.2,2573.8,3.2078]
[1727305256785,0.38853,2573.9,2573.8,3.2078]
[1727305257289,3.42852,2574.0,2573.8,3.2078]
[1727305257581,0.38853,2573.9,2573.8,3.2078]
[1727305257990,0.38856,2573.7,2573.6,4.6632]
[1727305258283,3.502,2573.9,2573.4,3.2078]
[1727305258284,0.38858,2573.6,2573.4,3.2078]
[1727305258679,0.38859,2573.5,2573.4,3.2078]
[1727305258986,0.38861,2573.4,2573.1,0.86584]
[1727305259284,0.38861,2573.4,2573.1,30.56584]
[1727305259477,0.38861,2573.4,2573.1,33.77364]
[1727305260183,0.38861,2573.4,2573.1,4.07364]
[1727305260584,0.38861,2573.4,2573.2,0.38864]
[1727305260782,3.879,2573.5,2573.2,0.38864]
[1727305260978,0.4504,2573.5,2573.3,0.38861]
[1727305261580,0.83899,2573.5,2573.2,0.38864]
[1727305261982,3.04,2573.7,2573.4,0.38861]
[1727305262178,3.42857,2573.7,2573.5,0.38859]
[1727305262483,1.32875,2573.8,2573.5,0.38859]
[1727305262683,0.9402,2573.8,2573.4,3.2078]
[1727305262886,0.38859,2573.5,2573.3,0.85881]
[1727305263087,3.42858,2573.6,2573.3,0.85881]
[1727305263397,0.38859,2573.5,2573.3,0.85881]
[1727305263582,3.4286,2573.5,2573.2,0.38863]
[1727305263784,0.4713,2573.4,2573.2,0.38863]
[1727305264084,0.4713,2573.4,2572.8,3.6575]
[1727305264085,3.04,2573.3,2572.8,3.6575]
[1727305264287,3.04,2573.0,2572.8,3.59649]
[1727305264684,3.04,2573.0,2572.9,0.38868]
[1727305264877,0.4711,2573.2,2573.1,0.38865]
[1727305265084,0.4711,2573.2,2573.1,3.59645]
[1727305265278,3.5113,2573.4,2573.2,0.38863]
[1727305265488,3.5113,2573.4,2573.3,0.38862]
[1727305265489,0.4713,2573.4,2573.3,0.38862]
[1727305265796,0.38859,2573.5,2573.2,0.4529]
[1727305266090,5.42923789,2573.6,2573.2,0.84152]
[1727305266487,1.91214789,2573.5,2573.2,0.84152]
[1727305266685,1.52355789,2573.5,2573.3,0.38861]
[1727305267089,1.52355789,2573.5,2573.2,0.84153]
[1727305267282,3.04,2573.4,2573.2,0.4529]
[1727305267484,4.56355789,2573.4,2573.2,0.4529]
[1727305267684,1.52355789,2573.5,2573.3,0.38861]
[1727305268090,1.91214789,2573.5,2573.2,0.84153]
[1727305268899,1.52355789,2573.5,2573.3,0.38862]
[1727305269398,1.91215789,2573.5,2573.2,1.30093]
[1727305269790,1.91215789,2573.5,2573.3,0.38861]
[1727305270490,0.3886,2573.5,2573.2,1.30093]
[1727305270994,1.52355789,2573.5,2573.4,0.38861]
[1727305271195,1.52355789,2573.7,2573.4,3.2078]
[1727305271400,1.52355789,2573.8,2573.6,0.38858]
[1727305271897,1.91210789,2573.8,2573.6,0.38858]
[1727305272397,1.52355789,2573.8,2573.4,3.2078]
[1727305272701,1.91210789,2573.8,2573.6,0.38857]
[1727305273196,1.52355789,2573.8,2573.7,0.84716]
[1727305273396,1.91209789,2573.9,2573.7,0.84716]
[1727305273600,10.06305799,2574.0,2573.7,0.4586]
[1727305273601,1.91210789,2573.8,2573.7,0.4586]
[1727305273801,0.38855,2573.8,2573.7,0.4586]
[1727305274094,1.91209789,2573.9,2573.7,0.4586]
[1727305274292,0.38855,2573.8,2573.7,0.4586]
[1727305274995,9.8856,2573.8,2573.4,3.2078]
[1727305275204,7.21929,2573.5,2572.4,3.2078]